bitfinex/quotes_ETHUSD_20250702
["timestamp","ask_amount","ask_price","bid_price","bid_amount"]
[1751421136939,24.33032959,2413.8,2413.4,0.02]
[1751421137116,23.08660535,2413.8,2413.4,0.02]
[1751421137324,24.33032959,2413.8,2413.4,0.02]
[1751421138946,24.33032959,2413.8,2413.6,0.7972]
[1751421139727,24.33032959,2413.8,2413.6,0.02]
[1751421139937,17.02432959,2413.8,2413.6,0.02]
[1751421140112,21.02021176,2413.8,2413.7,0.8183]
[1751421140309,12.19521176,2413.8,2413.7,0.8183]
[1751421140648,19.77648752,2413.8,2413.7,0.8183]
[1751421140795,13.02048752,2413.8,2413.7,0.8183]
[1751421141118,19.77648752,2413.8,2413.7,0.8183]
[1751421141312,19.77648752,2413.8,2413.7,1.71703986]
[1751421141514,13.02048752,2413.8,2413.7,1.71703986]
[1751421141914,19.77648752,2413.8,2413.7,1.71703986]
[1751421142114,19.77648752,2413.8,2413.7,0.8183]
[1751421143532,18.787,2413.8,2413.7,0.8183]
[1751421144216,19.78159555,2413.8,2413.7,0.8183]
[1751421144430,19.78159555,2413.8,2413.7,0.02]
[1751421145734,20.33159555,2413.8,2413.7,0.02]
[1751421146062,22.92682753,2413.8,2413.7,0.02]
[1751421147424,23.72362753,2413.8,2413.7,0.02]
[1751421150551,24.96735177,2413.8,2413.7,0.02]
[1751421152465,23.72362753,2413.8,2413.7,0.02]
[1751421153242,28.09062753,2413.8,2413.7,0.02]
[1751421153671,38.09062753,2413.8,2413.7,0.02]
[1751421154878,39.74359407,2413.8,2413.7,0.02]
[1751421157005,38.10762753,2413.8,2413.7,0.02]
[1751421157352,39.76506474,2413.8,2413.7,0.02]
[1751421157774,47.68506474,2413.8,2413.7,0.02]
[1751421159283,46.02762753,2413.8,2413.7,0.02]
[1751421160359,76.02762753,2413.8,2413.7,0.02]
[1751421163094,47.68095347,2413.8,2413.7,0.02]
[1751421163792,21.47182753,2413.8,2413.7,0.02]
[1751421163982,27.69859555,2413.8,2413.7,0.02]
[1751421164358,28.24859555,2413.8,2413.7,0.02]
[1751421164559,27.69859555,2413.8,2413.7,0.02]
[1751421164858,28.24859555,2413.8,2413.7,0.02]
[1751421166358,29.49056476,2413.8,2413.7,0.02]
[1751421166958,28.24859555,2413.8,2413.7,0.02]
[1751421167377,32.61559555,2413.8,2413.7,0.02]
[1751421167584,28.24859555,2413.8,2413.7,0.02]
[1751421169585,20.32859555,2413.8,2413.7,0.02]
[1751421169983,20.32759555,2413.8,2413.7,0.02]
[1751421174397,20.32659555,2413.8,2413.7,0.02]
[1751421175701,22.36025511,2413.8,2413.7,0.02]
[1751421178013,15.05825511,2413.8,2413.7,0.02]
[1751421178215,15.05825511,2413.8,2413.7,0.8274]
[1751421178216,19.77659555,2413.8,2413.7,0.8274]
[1751421180920,19.77659555,2413.8,2413.7,0.02]
[1751421181806,10.95659555,2413.8,2413.7,0.831]
[1751421181980,18.779,2413.8,2413.7,0.831]
[1751421185181,12.028,2413.8,2413.7,0.831]
[1751421185382,18.778,2413.8,2413.7,0.831]
[1751421186887,12.028,2413.8,2413.7,0.831]
[1751421187093,18.778,2413.8,2413.7,0.831]
[1751421187509,8.816,2413.8,2413.7,0.831]
[1751421189608,9.6986,2413.8,2413.7,0.02]
[1751421193814,9.6966,2413.8,2413.7,0.02]
[1751421193986,2.065,2413.9,2413.8,0.791]
[1751421194187,9.80782892,2413.9,2413.8,0.791]
[1751421194605,2.065,2413.9,2413.8,0.791]
[1751421194896,8.814,2413.9,2413.8,0.791]
[1751421198012,8.814,2413.9,2413.7,0.02]
[1751421198013,0.2064,2413.8,2413.7,0.02]
[1751421198723,9.0194,2413.8,2413.7,0.02]
[1751421200712,9.8306,2413.8,2413.7,0.02]
[1751421201213,10.3806,2413.8,2413.7,0.02]
[1751421202328,11.37524414,2413.8,2413.7,0.02]
[1751421204028,10.01404414,2413.8,2413.7,0.02]
[1751421204198,11.21822717,2413.8,2413.7,0.02]
[1751421208009,10.56404414,2413.8,2413.7,0.02]
[1751421208326,12.56023029,2413.8,2413.7,0.02]
[1751421208634,19.15472939,2413.8,2413.7,0.02]
[1751421208837,17.91244324,2413.8,2413.7,0.02]
[1751421209002,21.30312572,2413.8,2413.7,0.02]
[1751421209499,52.95950725,2413.8,2413.7,0.02]
[1751421209729,4.367,2413.6,2412.5,0.02]
[1751421210032,5.7288,2413.0,2412.5,0.02]
[1751421210210,14.5598,2413.0,2412.5,0.02]
[1751421211122,15.55358946,2413.0,2412.5,0.02]
[1751421211308,16.77460886,2413.0,2412.5,0.02]
[1751421211630,14.5598,2413.0,2412.5,0.02]
[1751421211834,14.5588,2413.0,2412.5,0.02]
[1751421212014,15.55198373,2413.0,2412.5,0.02]
[1751421212214,10.1918,2413.0,2412.5,0.02]
[1751421212415,11.87042991,2413.0,2412.5,0.02]
[1751421212635,14.10611096,2413.0,2412.5,0.02]
[1751421213235,12.86311807,2413.0,2412.5,0.02]
[1751421214713,4.03311807,2413.0,2412.5,0.02]
[1751421214913,9.378,2413.0,2412.5,0.02]
[1751421218948,0.55,2413.0,2412.8,0.8524]
[1751421219152,9.379,2413.0,2412.8,0.8524]
[1751421221053,10.99268816,2413.4,2412.8,0.8524]
[1751421221255,9.378,2413.3,2412.8,0.8524]
[1751421221419,0.55,2413.1,2412.8,0.8524]
[1751421221742,6.756,2413.0,2412.8,0.8524]
[1751421224256,0.55,2413.1,2412.8,0.8524]
[1751421224456,6.753,2413.0,2412.8,0.8524]
[1751421224622,0.55,2413.1,2412.8,0.8524]
[1751421224828,8.824,2413.0,2412.8,0.8524]
[1751421225225,0.55,2413.1,2412.8,0.8524]
[1751421225523,0.99268816,2413.3,2412.8,0.8524]
[1751421225723,1.24299289,2413.6,2413.0,0.8089]
[1751421225724,8.827,2413.2,2413.0,0.8089]
[1751421225928,2.071,2413.2,2413.0,0.8089]
[1751421226129,0.2072,2413.1,2413.0,0.8089]
[1751421226370,6.9632,2413.1,2413.0,0.8089]
[1751421226540,0.2072,2413.1,2413.0,0.8089]
[1751421226737,6.9642,2413.1,2413.0,1.55323991]
[1751421228563,6.9642,2413.1,2413.0,0.8089]
[1751421230662,6.757,2413.1,2412.8,0.8475]
[1751421233225,7.74655191,2413.1,2412.8,0.8475]
[1751421234566,7.74655191,2413.1,2412.8,0.02]
[1751421235347,0.98955191,2413.0,2412.8,0.02]
[1751421235746,6.757,2413.1,2412.8,0.02]
[1751421235936,7.6398,2413.1,2412.8,0.02]
[1751421236268,8.63295589,2413.1,2412.8,0.02]
[1751421236468,7.6598,2413.1,2412.8,0.02]
[1751421238645,0.02,2413.1,2412.8,0.02]
[1751421239052,8.828,2413.0,2412.8,0.02]
[1751421239253,8.828,2413.0,2412.9,0.8275]
[1751421240971,8.825,2413.0,2412.9,0.8275]
[1751421241564,0.02,2413.1,2412.9,0.8275]
[1751421241879,8.823,2413.0,2412.9,0.8275]
[1751421242774,6.9622,2413.0,2412.9,0.8275]
[1751421242976,6.9622,2413.0,2412.9,2.57369991]
[1751421243873,6.9612,2413.0,2412.9,2.57369991]
[1751421244246,0.2072,2413.0,2412.9,2.57369991]
[1751421244475,6.9602,2413.0,2412.9,2.57369991]
[1751421247479,0.2072,2413.0,2412.9,2.57369991]
[1751421247669,6.9582,2413.0,2412.9,2.57369991]
[1751421248248,0.2072,2413.0,2412.9,2.57369991]
[1751421248649,6.9572,2413.0,2412.9,2.57369991]
[1751421251249,0.2072,2413.0,2412.9,2.57369991]
[1751421251562,6.77,2413.1,2413.0,10.8065]
[1751421251766,6.77,2413.1,2413.0,13.06576999]
[1751421252267,6.77,2413.1,2413.0,10.8065]
[1751421252466,0.02,2413.1,2413.0,10.8065]
[1751421252664,6.77,2413.1,2413.0,0.8065]
[1751421252879,6.9772,2413.1,2412.9,0.02]
[1751421253077,6.77,2413.1,2412.9,0.02]
[1751421262472,7.6538,2413.1,2412.9,0.02]
[1751421263597,0.02,2413.1,2412.9,0.02]
[1751421263797,8.818,2413.0,2412.9,0.02]
[1751421266165,0.02,2413.1,2412.9,0.02]
[1751421266475,0.02,2413.1,2413.0,10.7718]
[1751421267218,0.02,2413.1,2413.0,0.7718]
[1751421267374,0.02,2413.1,2412.9,0.02]
[1751421267575,0.2072,2413.0,2412.9,0.02]
[1751421269078,6.77,2413.1,2412.9,16.6144991]
[1751421269399,6.77,2413.1,2413.0,13.48414991]
[1751421269983,0.02,2413.1,2413.0,13.48414991]
[1751421270185,6.77,2413.1,2413.0,13.48414991]
[1751421270868,0.02,2413.1,2413.0,13.48414991]
[1751421275304,0.02,2413.1,2413.0,13.48414991]
[1751421275721,0.02,2413.1,2413.0,10.8207]
[1751421280313,0.02,2413.1,2413.0,10.8307]
[1751421283715,6.769,2413.1,2413.0,10.8307]
[1751421285615,0.02,2413.1,2413.0,10.8307]
[1751421285923,6.769,2413.1,2413.0,10.8307]
[1751421292645,6.769,2413.1,2413.0,10.01]
[1751421294147,0.02,2413.1,2413.0,10.01]
[1751421294340,0.02,2413.1,2413.0,11.89311]
[1751421294341,6.768,2413.1,2413.0,11.89311]
[1751421295931,0.02,2413.1,2413.0,11.89311]
[1751421296135,6.768,2413.1,2413.0,11.89311]
[1751421296851,0.02,2413.1,2413.0,11.89311]
[1751421297258,6.768,2413.1,2413.0,11.89311]
[1751421297423,0.02,2413.1,2413.0,10.7874]
[1751421297623,6.768,2413.1,2413.0,10.7874]
[1751421298047,0.02,2413.1,2413.0,10.7874]
[1751421298359,6.768,2413.1,2413.0,10.7874]
[1751421300050,0.02,2413.1,2413.0,10.7874]
[1751421300257,6.768,2413.1,2413.0,12.55030991]
[1751421300857,0.02,2413.1,2413.0,12.55030991]
[1751421301057,6.768,2413.1,2413.0,12.55030991]
[1751421302061,0.02,2413.1,2413.0,12.55030991]
[1751421302364,0.02,2413.1,2413.0,12.75750991]
[1751421316872,0.2264,2413.8,2413.1,10.7638]
[1751421317077,2.063,2413.7,2413.5,7.3879991]
[1751421318750,0.2264,2413.8,2413.5,7.3879991]
[1751421318950,2.063,2413.7,2413.5,7.3879991]
[1751421319360,2.063,2413.7,2413.5,0.7935]
[1751421319579,2.063,2413.7,2413.4,10.2064]
[1751421319776,2.063,2413.7,2413.4,12.20262901]
[1751421322487,2.8525,2413.7,2413.2,1.0384]
[1751421324486,2.8525,2413.7,2413.2,0.2064]
[1751421324682,0.2064,2413.6,2413.2,0.2064]
[1751421326987,0.2264,2413.6,2413.2,0.2064]
[1751421328984,2.063,2413.5,2413.2,0.2064]
[1751421329188,2.063,2413.5,2413.2,2.1453709]
[1751421330285,0.2264,2413.6,2413.2,2.1453709]
[1751421330783,9.0334,2413.6,2413.4,10.0]
[1751421331369,0.2264,2413.6,2413.4,10.0]
[1751421331571,2.082,2413.6,2413.4,10.0]
[1751421331764,2.082,2413.6,2413.5,1.74064991]
[1751421335397,0.02,2413.6,2413.5,1.74064991]
[1751421335757,0.02,2413.6,2413.5,18.33514901]
[1751421336190,0.02,2413.6,2413.5,19.10024901]
[1751421337203,2.082,2414.1,2413.5,19.10024901]
[1751421337204,0.02,2414.1,2413.6,0.55]
[1751421337359,0.02,2414.1,2414.0,17.6309991]
[1751421339090,0.02,2414.1,2414.0,17.94431867]
[1751421342313,0.02,2414.1,2414.0,18.15261745]
[1751421342680,0.02,2414.1,2414.0,17.94431867]
[1751421345485,0.02,2414.1,2414.0,10.2064]
[1751421345685,0.02,2414.1,2414.0,11.30865]
[1751421348411,0.8134,2414.1,2414.0,10.0]
[1751421348708,1.0198,2414.1,2414.0,10.0]
[1751421351515,1.0198,2414.1,2413.8,0.01]
[1751421352792,0.8134,2414.1,2413.8,0.01]
[1751421352993,0.2064,2414.0,2413.8,0.01]
[1751421354587,2.2674,2414.0,2413.8,0.01]
[1751421355921,0.2064,2414.0,2413.8,0.01]
[1751421356116,2.2674,2414.0,2413.8,0.01]
[1751421356618,0.2064,2414.0,2413.8,10.01]
[1751421356826,2.2674,2414.0,2413.9,16.5944991]
[1751421359329,2.2674,2414.0,2413.9,10.0]
[1751421363731,3.0428,2414.0,2413.9,10.0]
[1751421367130,2.2674,2414.0,2413.9,10.0]
[1751421367633,0.2064,2414.0,2413.9,10.0]
[1751421367839,0.2064,2414.0,2413.9,10.41529486]
[1751421369630,0.02,2414.1,2414.0,10.0]
[1751421371822,0.02,2414.1,2414.0,10.8118]
[1751421372028,0.02,2414.1,2414.0,11.0182]
[1751421373538,0.02,2414.1,2414.0,11.5682]
[1751421373742,0.02,2414.1,2414.0,13.87959235]
[1751421375041,0.02,2414.1,2414.0,14.18671051]
[1751421377413,2.06,2414.9,2414.3,0.55]
[1751421377615,2.06,2414.9,2414.6,17.3757991]
[1751421377916,0.01,2415.0,2414.6,17.3757991]
[1751421378527,0.01,2415.0,2414.6,17.9257991]
[1751421378724,0.01,2415.0,2414.6,19.18901901]
[1751421379650,0.01,2415.0,2414.6,11.81321991]
[1751421380212,0.8361,2414.7,2414.5,0.2064]
[1751421380417,1.0425,2414.7,2414.2,0.2064]
[1751421380840,1.0425,2414.7,2414.2,6.8008991]
[1751421381430,1.0425,2414.7,2414.3,10.0]
[1751421395457,0.2064,2414.4,2414.1,10.0]
[1751421395658,0.8178,2414.3,2414.1,11.68208991]
[1751421400151,0.2064,2414.4,2414.1,11.68208991]
[1751421404982,0.8124,2414.3,2414.0,0.2264]
[1751421405153,0.2064,2414.1,2414.0,0.02]
[1751421409968,2.059,2414.2,2414.0,16.6144991]
[1751421410285,2.059,2414.2,2414.0,16.8208991]
[1751421410485,2.059,2414.2,2414.1,1.76467991]
[1751421410683,2.059,2414.2,2414.0,16.8208991]
[1751421411881,0.2064,2414.4,2414.0,16.8208991]
[1751421412056,0.2064,2414.4,2414.2,6.5944991]
[1751421416790,0.2064,2414.4,2414.3,0.8269]
[1751421416992,0.2064,2414.4,2414.3,10.8269]
[1751421417461,0.2064,2414.4,2414.3,10.0]
[1751421420295,0.2064,2414.4,2414.2,10.0]
[1751421420467,0.2064,2414.4,2414.2,11.71334393]
[1751421423774,0.2064,2414.4,2414.3,17.4255991]
[1751421423969,0.2164,2414.6,2414.3,7.4255991]
[1751421424174,0.01,2414.6,2414.5,6.5944991]
[1751421424971,0.01,2414.6,2414.5,16.5944991]
[1751421425171,0.01,2414.6,2414.5,18.35769901]
[1751421427786,0.01,2414.6,2414.5,19.18699901]
[1751421427990,0.01,2414.6,2414.5,19.39339901]
[1751421428696,0.01,2414.6,2414.5,19.94339901]
[1751421429607,0.01,2414.6,2414.5,20.35484715]
[1751421430308,0.01,2414.6,2414.5,19.94339901]
[1751421430673,0.01,2414.6,2414.5,19.39339901]
[1751421431109,0.01,2414.6,2414.5,18.56409901]
[1751421432117,0.01,2414.6,2414.5,0.2064]
[1751421432433,0.2164,2414.6,2414.2,10.0]
[1751421432591,0.2164,2414.6,2414.3,0.02]
[1751421434496,0.7994,2414.5,2414.3,0.02]
[1751421434698,1.0058,2414.4,2414.3,0.02]
[1751421434892,1.78068,2414.4,2414.3,0.02]
[1751421435509,2.77299048,2414.4,2414.3,0.02]
[1751421435705,1.78068,2414.4,2414.3,0.02]
[1751421435909,2.77299048,2414.4,2414.3,0.02]
[1751421436129,1.78068,2414.4,2414.3,0.02]
[1751421436437,2.77299048,2414.4,2414.3,0.02]
[1751421437191,1.78068,2414.4,2414.3,0.02]
[1751421437391,2.77299048,2414.4,2414.3,0.02]
[1751421437637,1.78068,2414.4,2414.3,0.02]
[1751421437838,2.77299048,2414.4,2414.3,0.02]
[1751421438149,1.78068,2414.4,2414.3,0.02]
[1751421438298,2.77299048,2414.4,2414.3,0.02]
[1751421438505,1.78068,2414.4,2414.3,0.02]
[1751421438724,2.77299048,2414.4,2414.3,0.02]
[1751421438929,1.78068,2414.4,2414.3,0.02]
[1751421439130,2.77299048,2414.4,2414.3,0.02]
[1751421439299,1.78068,2414.4,2414.3,0.02]
[1751421439502,2.77299048,2414.4,2414.3,0.02]
[1751421439803,1.78068,2414.4,2414.3,0.02]
[1751421440014,2.77299048,2414.4,2414.3,0.02]
[1751421440316,1.78068,2414.4,2414.3,0.02]
[1751421440512,2.77299048,2414.4,2414.3,0.02]
[1751421441101,1.78068,2414.4,2414.3,0.02]
[1751421441303,2.77299048,2414.4,2414.3,0.02]
[1751421441535,1.78068,2414.4,2414.3,0.02]
[1751421441716,2.77299048,2414.4,2414.3,0.02]
[1751421441922,1.78068,2414.4,2414.3,0.02]
[1751421442120,9.7968,2414.4,2414.3,0.02]
[1751421442317,1.0058,2414.4,2414.3,0.02]
[1751421442502,9.7968,2414.4,2414.3,0.02]
[1751421442702,1.0058,2414.4,2414.3,0.02]
[1751421443033,9.7978,2414.4,2414.3,0.02]
[1751421443229,10.87781105,2414.4,2414.3,0.02]
[1751421445215,11.87012153,2414.4,2414.3,0.02]
[1751421445416,10.87781105,2414.4,2414.3,0.02]
[1751421446214,2.08581105,2414.4,2414.3,0.02]
[1751421446540,9.7978,2414.4,2414.3,0.02]
[1751421449243,1.0058,2414.4,2414.3,0.02]
[1751421449406,9.7978,2414.4,2414.3,0.02]
[1751421450009,1.0058,2414.4,2414.3,0.02]
[1751421450210,9.7978,2414.4,2414.3,0.02]
[1751421450442,10.87781105,2414.4,2414.3,0.02]
[1751421453641,2.08581105,2414.4,2414.3,0.02]
[1751421453849,9.7978,2414.4,2414.3,0.02]
[1751421457348,9.7968,2414.4,2414.3,0.02]
[1751421462154,10.78911048,2414.4,2414.3,0.02]
[1751421470964,1.99811048,2414.4,2414.3,0.02]
[1751421471154,9.98971048,2414.4,2414.3,0.02]
[1751421476567,11.23120018,2414.4,2414.3,0.02]
[1751421477747,13.35695287,2414.4,2414.3,0.02]
[1751421479365,12.11546317,2414.4,2414.3,0.02]
[1751421481184,13.35996432,2414.4,2414.3,0.02]
[1751421483299,4.56896432,2414.4,2414.3,0.02]
[1751421483449,2.44321163,2414.4,2414.3,0.02]
[1751421483647,1.19871048,2414.4,2414.3,0.02]
[1751421483855,9.98871048,2414.4,2414.3,0.7756]
[1751421484156,8.9964,2414.4,2414.3,0.7756]
[1751421485491,8.9964,2414.4,2414.3,1.85316]
[1751421486492,2.2634,2414.4,2414.3,1.85316]
[1751421486669,8.9954,2414.4,2414.3,1.85316]
[1751421490964,8.9954,2414.4,2414.3,1.09756]
[1751421491182,8.9954,2414.4,2414.3,0.02]
[1751421492873,8.9924,2414.4,2414.3,0.02]
[1751421496198,9.9863495,2414.4,2414.3,0.02]
[1751421498774,10.7595495,2414.4,2414.3,0.02]
[1751421508880,12.00405065,2414.4,2414.3,0.02]
[1751421509084,14.03083829,2414.4,2414.3,0.02]
[1751421509514,14.58083829,2414.4,2414.3,0.02]
[1751421510426,5.24483829,2414.4,2414.3,0.02]
[1751421510585,4.91567618,2414.4,2414.3,0.02]
[1751421510912,11.22886838,2414.4,2414.3,0.02]
[1751421511214,9.9863495,2414.4,2414.3,0.02]
[1751421511411,1.2003495,2414.4,2414.3,0.02]
[1751421511583,9.9863495,2414.4,2414.3,0.02]
[1751421511981,1.2003495,2414.4,2414.3,7.3852991]
[1751421512186,1.2003495,2414.4,2414.3,8.12382901]
[1751421512713,7.9303495,2414.4,2414.3,8.12382901]
[1751421513590,6.9364,2414.4,2414.3,8.12382901]
[1751421514095,2.056,2414.5,2414.3,8.12382901]
[1751421514298,6.73,2414.4,2414.3,7.35302901]
[1751421514814,6.73,2414.4,2414.3,8.13842901]
[1751421515031,0.01,2414.6,2414.4,10.0]
[1751421515318,0.01,2414.6,2414.5,19.115202]
[1751421515621,7.73282306,2414.6,2414.5,19.115202]
[1751421515803,6.739,2414.6,2414.5,19.115202]
[1751421522050,6.739,2414.6,2414.5,12.5207029]
[1751421532139,0.01,2414.6,2414.5,12.5207029]
[1751421532331,6.737,2414.6,2414.5,12.5207029]
[1751421537353,6.737,2414.6,2414.5,10.7854]
[1751421537755,6.737,2414.6,2414.5,10.0]
[1751421541222,6.736,2414.6,2414.5,10.8282]
[1751421541451,6.9424,2414.6,2414.5,10.8282]
[1751421542657,6.9424,2414.6,2414.5,17.4226991]
[1751421543438,6.9424,2414.6,2414.5,19.18760901]
[1751421543633,0.2164,2414.6,2414.5,19.18760901]
[1751421543822,6.9424,2414.6,2414.5,19.18760901]
[1751421544853,0.2164,2414.6,2414.5,19.18760901]
[1751421545022,6.736,2414.6,2414.5,19.18760901]
[1751421547639,6.736,2414.6,2414.5,19.20760901]
[1751421548561,0.01,2414.6,2414.5,19.20760901]
[1751421548756,6.735,2414.6,2414.5,19.41400901]
[1751421548934,0.01,2414.6,2414.5,19.41400901]
[1751421556266,0.01,2414.6,2414.5,19.41400901]
[1751421560356,0.01,2414.6,2414.5,18.37940901]
[1751421560571,0.01,2414.6,2414.5,16.6144991]
[1751421560874,0.01,2414.6,2414.5,10.02]
[1751421567283,0.01,2414.6,2414.5,16.6144991]
[1751421573984,0.01,2414.6,2414.5,10.02]
[1751421576485,0.01,2414.6,2414.5,16.6144991]
[1751421577564,1.24251888,2415.4,2414.7,1.3193]
[1751421577764,0.0039932,2415.5,2415.0,10.9757]
[1751421577976,0.99388818,2415.4,2415.0,10.9757]
[1751421578192,0.0039932,2415.5,2415.0,10.9757]
[1751421578373,0.99374035,2415.4,2415.0,10.9757]
[1751421578689,0.0039932,2415.5,2415.0,10.9757]
[1751421578895,0.99373934,2415.4,2415.0,10.9757]
[1751421579058,0.0039932,2415.5,2415.0,10.9757]
[1751421579485,0.2103932,2415.5,2415.0,10.9757]
[1751421588904,0.2103932,2415.5,2415.0,17.6967]
[1751421589205,0.2103932,2415.5,2415.0,20.41832694]
[1751421595389,0.2103932,2415.5,2415.0,20.62871994]
[1751421597078,0.2103932,2415.5,2415.0,20.41832694]
[1751421597406,0.9660932,2415.5,2415.0,20.41732694]
[1751421598706,0.2103932,2415.5,2415.0,13.69732694]
[1751421598913,0.2103932,2415.5,2415.0,20.41732694]
[1751421599692,0.2103932,2415.5,2415.0,20.62771994]
[1751421600414,0.2103932,2415.5,2415.1,1.3325]
[1751421600601,0.7768,2416.5,2415.8,0.7825]
[1751421600915,0.7768,2416.5,2416.4,10.0]
[1751421601211,0.7768,2416.5,2415.9,0.992088]
[1751421601415,0.2064,2416.1,2415.9,0.992088]
[1751421601711,0.2064,2416.1,2416.0,10.0]
[1751421601712,0.9886,2416.1,2416.0,10.0]
[1751421602518,0.8298,2416.4,2416.0,10.0]
[1751421602723,0.8298,2416.4,2416.3,6.5944991]
[1751421603014,0.2064,2416.5,2416.3,16.5944991]
[1751421603824,0.7676,2416.6,2416.1,6.5944991]
[1751421604012,0.2064,2416.5,2416.2,10.0]
[1751421604590,0.2064,2416.5,2416.3,6.5944991]
[1751421604782,0.2064,2416.6,2416.3,6.5944991]
[1751421605525,0.8313,2416.5,2415.8,0.30940818]
[1751421605687,0.2064,2416.1,2415.7,8.0454611]
[1751421605887,0.2064,2416.1,2415.8,10.0]
[1751421606094,0.7655,2416.0,2415.7,0.2064]
[1751421606314,0.7655,2416.0,2415.5,6.5944991]
[1751421606487,0.9719,2416.0,2415.6,10.0]
[1751421606692,0.9719,2416.0,2415.5,6.8008991]
[1751421606693,0.9719,2416.0,2415.7,6.5944991]
[1751421607428,0.9719,2416.0,2415.6,10.0]
[1751421608006,1.038,2415.7,2415.3,16.5944991]
[1751421608206,1.038,2415.7,2415.3,18.48127101]
[1751421609722,1.038,2415.7,2415.6,10.0]
[1751421610490,1.038,2415.7,2415.5,10.0]
[1751421610928,1.038,2415.7,2415.3,10.31256219]
[1751421611223,1.038,2415.7,2415.3,10.0]
[1751421614113,1.038,2415.7,2415.5,10.0]
[1751421617298,1.048,2415.7,2415.5,10.0]
[1751421617900,0.01,2415.7,2415.6,16.5944991]
[1751421619242,0.01,2415.7,2415.6,10.0]
[1751421622837,0.2164,2415.7,2415.6,16.5944991]
[1751421623003,0.2164,2415.7,2415.6,10.0]
[1751421623527,1.0042,2415.7,2415.6,10.0]
[1751421627730,1.0042,2415.7,2415.0,10.02]
[1751421627929,0.2064,2415.5,2415.1,7.42292979]
[1751421628111,0.2064,2415.5,2415.2,10.0]
[1751421629642,0.2064,2415.5,2415.4,10.0]
[1751421632044,0.01,2415.7,2415.5,0.7533]
[1751421632211,0.01,2415.7,2415.6,16.5944991]
[1751421632410,0.01,2415.7,2415.6,18.34991901]
[1751421633646,0.01,2415.7,2415.6,19.33631901]
[1751421634838,0.01,2415.7,2415.6,12.74181991]
[1751421635025,0.01,2415.7,2415.6,10.0]
[1751421641623,0.2164,2415.7,2415.6,10.0]
[1751421655044,0.9982,2415.7,2415.6,10.0]
[1751421655767,0.2164,2415.7,2415.6,10.0]
[1751421664974,0.9738,2415.7,2415.6,10.0]
[1751421665345,3.0278,2415.7,2415.6,10.0]
[1751421665548,3.33058,2415.7,2415.5,0.02]
[1751421666277,8.93870548,2415.6,2415.5,0.02]
[1751421666852,18.93870548,2415.6,2415.5,0.02]
[1751421667052,48.93870548,2415.6,2415.5,0.02]
[1751421667276,51.41916441,2415.6,2415.5,0.02]
[1751421667457,50.59352088,2415.6,2415.5,0.02]
[1751421667875,48.93870548,2415.6,2415.5,0.02]
[1751421668573,50.59196329,2415.6,2415.5,0.02]
[1751421670372,48.93870548,2415.6,2415.5,0.02]
[1751421671341,18.93870548,2415.6,2415.5,0.02]
[1751421671553,23.15539838,2415.6,2415.5,0.02]
[1751421672176,21.91746827,2415.6,2415.5,0.02]
[1751421672349,23.15541831,2415.6,2415.5,0.02]
[1751421672755,0.7676,2415.4,2415.0,0.02]
[1751421673073,1.3176,2415.1,2415.0,0.02]
[1751421673277,3.3686,2415.1,2415.0,0.02]
[1751421674086,9.5416,2415.1,2415.0,0.02]
[1751421675969,10.7113,2415.3,2415.0,0.02]
[1751421676173,2.051,2415.1,2415.0,0.02]
[1751421676501,10.7113,2415.3,2415.0,0.02]
[1751421676502,9.955,2415.3,2415.1,0.7922]
[1751421676862,6.723,2415.2,2415.1,0.7922]
[1751421677058,9.955,2415.3,2415.1,0.7922]
[1751421677263,6.723,2415.2,2415.1,1.53286991]
[1751421677458,6.9294,2415.2,2415.1,1.53286991]
[1751421678058,6.9294,2415.2,2415.1,0.7922]
[1751421680992,6.9294,2415.2,2415.0,0.02]
[1751421686996,0.7676,2415.1,2415.0,0.02]
[1751421688205,7.9120991,2415.1,2415.0,0.02]
[1751421688369,1.3176,2415.1,2415.0,0.02]
[1751421688574,12.57124991,2415.1,2415.0,0.02]
[1751421689010,13.56195065,2415.1,2415.0,0.02]
[1751421690241,4.78795065,2415.1,2415.0,0.02]
[1751421690425,13.01295065,2415.1,2415.0,0.02]
[1751421693419,12.24535065,2415.1,2415.0,0.02]
[1751421708109,12.24435065,2415.1,2415.0,0.02]
[1751421709408,3.04170074,2415.1,2415.0,0.02]
[1751421709613,8.774,2415.1,2415.0,0.02]
[1751421710523,9.76771776,2415.1,2415.0,0.02]
[1751421710709,8.774,2415.1,2415.0,0.02]
[1751421710909,9.76773283,2415.1,2415.0,0.02]
[1751421711320,11.76064611,2415.1,2415.0,0.02]
[1751421715644,2.051,2415.1,2415.0,0.02]
[1751421715851,8.774,2415.1,2415.0,0.8368]
[1751421716015,8.774,2415.1,2415.0,7.4312991]
[1751421716217,2.051,2415.1,2415.0,7.4312991]
[1751421716828,8.774,2415.1,2415.0,7.4312991]
[1751421717145,8.774,2415.1,2415.0,8.17442901]
[1751421718053,8.774,2415.1,2415.0,1.57992991]
[1751421718229,8.774,2415.1,2415.0,0.02]
[1751421723340,8.774,2415.1,2415.0,7.3867991]
[1751421723854,8.773,2415.1,2415.0,7.3867991]